bitfinex-derivatives/quotes_BTCF0:USTF0_20210404
["timestamp","ask_amount","ask_price","bid_price","bid_amount"]
[1617568374105,0.65083113,57872.0,57871.0,0.94156923]
[1617568375705,0.65083113,57872.0,57871.0,0.57725655]
[1617568377109,1.08573909,57872.0,57871.0,0.57725655]
[1617568378807,1.08573909,57872.0,57871.0,1.57725655]
[1617568379008,0.65083113,57872.0,57871.0,1.57725655]
[1617568379409,0.89439745,57872.0,57871.0,1.94159795]
[1617568379811,0.65083113,57872.0,57871.0,1.94159795]
[1617568380714,0.29555298,57872.0,57871.0,1.94159795]
[1617568382312,0.29555298,57872.0,57871.0,2.38688521]
[1617568383215,0.65167741,57872.0,57871.0,0.94159795]
[1617568384213,0.65167741,57872.0,57871.0,0.57725655]
[1617568385919,1.08830788,57872.0,57871.0,0.57725655]
[1617568389521,1.08830788,57872.0,57871.0,1.74405655]
[1617568389721,0.10725655,57878.0,57871.0,1.74405655]
[1617568390123,0.60376868,57878.0,57876.0,2.9182]
[1617568390523,0.96913413,57878.0,57877.0,0.02642252]
[1617568391033,1.56493834,57878.0,57877.0,0.02642252]
[1617568391423,2.06135042,57878.0,57877.0,0.02642252]
[1617568391624,4.83575042,57878.0,57877.0,0.02642252]
[1617568399231,2.06135042,57878.0,57877.0,0.02642252]
[1617568399630,1.69598497,57878.0,57877.0,3.09372252]
[1617568401731,1.58872842,57878.0,57877.0,3.09372252]
[1617568405233,0.49331208,57878.0,57877.0,3.09372252]
[1617568405434,1.58635294,57878.0,57877.0,3.09372252]
[1617568405634,0.49331208,57878.0,57877.0,3.09372252]
[1617568405835,1.09370422,57878.0,57877.0,3.09372252]
[1617568407240,1.09370422,57878.0,57877.0,4.09372252]
[1617568408039,1.09370422,57878.0,57877.0,4.45823938]
[1617568410744,0.65624241,57878.0,57877.0,4.45823938]
[1617568411044,0.65044241,57878.0,57877.0,4.45823938]
[1617568411245,1.08912162,57878.0,57877.0,3.45823938]
[1617568411646,1.08912162,57878.0,57877.0,3.09372252]
[1617568412049,1.19637817,57878.0,57877.0,3.14482252]
[1617568412247,1.19637817,57878.0,57877.0,3.09372252]
[1617568412449,1.4399491,57878.0,57877.0,3.09372252]
[1617568416551,1.4032491,57878.0,57877.0,3.09372252]
[1617568417151,1.29599255,57878.0,57877.0,3.09372252]
[1617568417552,1.05242162,57878.0,57877.0,3.09372252]
[1617568417952,1.29598579,57878.0,57877.0,3.09372252]
[1617568418353,1.05242162,57878.0,57877.0,3.09372252]
[1617568425862,1.05242162,57878.0,57877.0,3.29372252]
[1617568429268,1.05242162,57878.0,57877.0,3.09372252]
[1617568431674,1.05242162,57878.0,57877.0,4.09372252]
[1617568436281,1.05242162,57878.0,57877.0,3.09372252]
[1617568440585,1.05242162,57878.0,57877.0,0.02642252]
[1617568440786,1.20031162,57878.0,57877.0,0.02642252]
[1617568441389,1.44387409,57878.0,57877.0,0.02642252]
[1617568441985,4.22457409,57878.0,57877.0,0.02642252]
[1617568442186,4.8287277,57878.0,57877.0,0.02642252]
[1617568442787,5.1940957,57878.0,57877.0,0.02642252]
[1617568443188,2.4133957,57878.0,57877.0,0.02642252]
[1617568443590,2.0480277,57878.0,57877.0,0.02642252]
[1617568443989,2.41340162,57878.0,57877.0,0.02642252]
[1617568452001,2.41340162,57878.0,57877.0,3.73032252]
[1617568452201,2.0480277,57878.0,57877.0,3.73032252]
[1617568452702,1.9001377,57878.0,57877.0,3.73032252]
[1617568472927,1.9525377,57878.0,57877.0,3.73032252]
[1617568473127,1.9001377,57878.0,57877.0,3.73032252]
[1617568479435,1.9001377,57878.0,57877.0,0.02642252]
[1617568479638,5.5905077,57878.0,57877.0,0.02642252]
[1617568480336,5.95589282,57878.0,57877.0,0.02642252]
[1617568486144,2.39869282,57878.0,57877.0,0.02642252]
[1617568486846,2.0333077,57878.0,57877.0,0.02642252]
[1617568487447,2.0333077,57878.0,57877.0,3.23602252]
[1617568488948,2.59056992,57878.0,57877.0,3.23602252]
[1617568495957,2.45739992,57878.0,57877.0,3.35560252]
[1617568496157,2.35014337,57878.0,57877.0,3.35560252]
[1617568496358,1.79288115,57878.0,57877.0,3.35560252]
[1617568496758,1.79288115,57878.0,57877.0,3.55560252]
[1617568497158,1.54931868,57878.0,57877.0,3.55560252]
[1617568497359,1.54931868,57878.0,57877.0,4.55560252]
[1617568497557,1.54931868,57878.0,57877.0,3.55560252]
[1617568497959,1.54931868,57878.0,57877.0,4.55560252]
[1617568498160,1.05242162,57878.0,57877.0,4.55560252]
[1617568498560,1.05242162,57878.0,57877.0,4.35560252]
[1617568499060,1.05242162,57878.0,57877.0,4.55560252]
[1617568499661,1.05242162,57878.0,57877.0,4.92029823]
[1617568499862,1.05242162,57878.0,57877.0,3.92029823]
[1617568500060,1.05242162,57878.0,57877.0,4.92029823]
[1617568501964,1.05242162,57878.0,57877.0,3.92029823]
[1617568502163,1.05242162,57878.0,57877.0,4.92029823]
[1617568502366,0.61374241,57878.0,57877.0,4.92029823]
[1617568502663,0.59644241,57878.0,57877.0,4.92029823]
[1617568502864,0.83997392,57878.0,57877.0,4.92029823]
[1617568503465,0.59644241,57878.0,57877.0,5.3659617]
[1617568503866,0.83997142,57878.0,57877.0,5.3659617]
[1617568504369,0.59644241,57878.0,57877.0,5.3659617]
[1617568504769,0.83996998,57878.0,57877.0,5.3659617]
[1617568505173,0.59644241,57878.0,57877.0,5.3659617]
[1617568506073,0.59644241,57878.0,57877.0,4.92029823]
[1617568507875,1.0354657,57878.0,57877.0,4.92029823]
[1617568508677,0.59644241,57878.0,57877.0,4.92029823]
[1617568509277,1.03545358,57878.0,57877.0,4.92029823]
[1617568509678,0.59644241,57878.0,57877.0,4.92029823]
[1617568510078,1.03544898,57878.0,57877.0,4.92029823]
[1617568510478,0.59644241,57878.0,57877.0,4.92029823]
[1617568512784,0.83996945,57878.0,57877.0,4.92029823]
[1617568513185,0.59644241,57878.0,57877.0,4.92029823]
[1617568515086,0.29830104,57878.0,57877.0,4.92029823]
[1617568524501,0.29830104,57878.0,57877.0,4.72029823]
[1617568525300,0.29830104,57878.0,57877.0,4.35560252]
[1617568525499,0.29830104,57878.0,57877.0,4.55560252]
[1617568527704,0.29830104,57878.0,57877.0,3.55560252]
[1617568527904,0.29830104,57878.0,57877.0,3.23602252]
[1617568528309,0.65587069,57878.0,57877.0,3.23602252]
[1617568532213,0.65587069,57878.0,57877.0,4.23602252]
[1617568532413,0.65587069,57878.0,57877.0,3.23602252]
[1617568532613,0.65587069,57878.0,57877.0,4.23602252]
[1617568533416,0.29830104,57878.0,57877.0,4.59989239]
[1617568534016,0.88114687,57878.0,57877.0,4.23602252]
[1617568534515,0.88114687,57878.0,57877.0,3.23602252]
[1617568534715,0.88114687,57878.0,57877.0,4.23602252]
[1617568534916,0.88114687,57878.0,57877.0,4.28772252]
[1617568535117,0.63761468,57878.0,57877.0,4.28772252]
[1617568535617,0.88114633,57878.0,57877.0,4.28772252]
[1617568535921,0.63761468,57878.0,57877.0,4.23602252]
[1617568544729,0.63761468,57878.0,57877.0,3.23602252]
[1617568546631,1.07566714,57878.0,57877.0,3.60065695]
[1617568548133,1.07566714,57878.0,57877.0,4.60065695]
[1617568549136,0.63761468,57878.0,57877.0,4.60065695]
[1617568549736,1.075792,57878.0,57877.0,4.60065695]
[1617568552439,0.63761468,57878.0,57877.0,4.60065695]
[1617568552939,1.07577759,57878.0,57877.0,4.60065695]
[1617568553340,0.63761468,57878.0,57877.0,4.60065695]
[1617568553741,1.07576915,57878.0,57877.0,4.60065695]
[1617568554341,0.63761468,57878.0,57877.0,4.60065695]
[1617568554642,0.88115355,57878.0,57877.0,4.60065695]
[1617568555044,1.07580123,57878.0,57877.0,4.60065695]
[1617568555441,0.63761468,57878.0,57877.0,4.60065695]
[1617568556444,0.63761468,57878.0,57877.0,5.04642489]
[1617568556844,0.63761468,57878.0,57877.0,4.60065695]
[1617568557644,0.63761468,57878.0,57877.0,5.04689134]
[1617568557645,1.07635829,57878.0,57877.0,5.04689134]
[1617568561151,0.63761468,57878.0,57877.0,5.04689134]
[1617568561551,1.07685777,57878.0,57877.0,5.04689134]
[1617568563352,1.20006777,57878.0,57877.0,4.04689134]
[1617568563553,1.20006777,57878.0,57877.0,0.83729134]
[1617568563753,4.40406777,57878.0,57877.0,0.83729134]
[1617568563954,4.64760646,57878.0,57877.0,0.83729134]
[1617568564555,4.64760646,57878.0,57877.0,0.39105695]
[1617568564556,7.0118272,57878.0,57877.0,0.39105695]
[1617568564754,7.11908375,57878.0,57877.0,0.39105695]
[1617568564954,7.11908375,57878.0,57877.0,0.08731299]
[1617568566356,7.11908375,57878.0,57877.0,0.02642252]
[1617568567155,3.91508375,57878.0,57877.0,0.02642252]
[1617568567555,2.41508375,57878.0,57877.0,0.02642252]
[1617568567957,1.80621961,57878.0,57877.0,0.02642252]
[1617568568559,2.04978176,57878.0,57877.0,2.85522252]
[1617568568756,2.04978176,57878.0,57877.0,2.96247907]
[1617568570258,2.04978176,57878.0,57877.0,0.13367907]
[1617568570658,5.00538176,57878.0,57877.0,0.13367907]
[1617568571158,5.37072662,57878.0,57877.0,0.13367907]
[1617568571359,5.37072662,57878.0,57877.0,0.02642252]
[1617568574060,2.41512662,57878.0,57877.0,0.02642252]
[1617568574260,2.41512662,57878.0,57877.0,2.59782252]
[1617568574461,1.92657176,57878.0,57877.0,2.59782252]
[1617568574863,1.81931521,57878.0,57877.0,2.70507907]
[1617568575362,1.57575306,57878.0,57877.0,2.70507907]
[1617568577264,1.07685777,57878.0,57877.0,3.06989465]
[1617568588591,1.57571214,57878.0,57877.0,2.70507907]
[1617568589384,1.07685777,57878.0,57877.0,3.06992566]
[1617568591199,1.07685777,57878.0,57877.0,1.49852566]
[1617568591410,4.28724777,57878.0,57877.0,1.49852566]
[1617568591605,4.28724777,57878.0,57877.0,0.49852566]
[1617568591807,4.7862274,57878.0,57877.0,0.13367907]
[1617568592282,5.39511107,57878.0,57877.0,0.13367907]
[1617568592781,5.50236762,57878.0,57877.0,0.13367907]
[1617568614421,5.39511107,57878.0,57877.0,0.02642252]
[1617568615018,5.39511107,57878.0,57877.0,0.13367907]
[1617568615019,5.50236762,57878.0,57877.0,0.13367907]
[1617568631133,5.39511107,57878.0,57877.0,0.02642252]
[1617568631734,5.50236762,57878.0,57877.0,0.02642252]
[1617568638842,7.00236762,57878.0,57877.0,0.02642252]
[1617568639243,8.00236762,57878.0,57877.0,0.02642252]
[1617568639645,9.10932769,57878.0,57877.0,0.02642252]
[1617568639843,9.30932769,57878.0,57877.0,0.02642252]
[1617568641546,9.30932769,57878.0,57877.0,0.02540735]
[1617568641947,10.00811323,57878.0,57877.0,0.02540735]
[1617568646551,9.00811323,57878.0,57877.0,0.02540735]
[1617568646752,10.00811323,57878.0,57877.0,0.02540735]
[1617568647254,9.80811323,57878.0,57877.0,0.02540735]
[1617568648758,9.70085668,57878.0,57877.0,0.02540735]
[1617568648957,10.57980209,57878.0,57877.0,0.02540735]
[1617568650058,10.68705864,57878.0,57877.0,0.02540735]
[1617568650761,9.80811323,57878.0,57877.0,0.02540735]
[1617568653061,9.80811323,57878.0,57877.0,0.02439213]
[1617568654462,8.80811323,57878.0,57877.0,0.02439213]
[1617568654662,9.80811323,57878.0,57877.0,0.02439213]
[1617568656363,9.70085668,57878.0,57877.0,0.02439213]
[1617568656965,10.00811323,57878.0,57877.0,0.02439213]
[1617568659969,9.80811323,57878.0,57877.0,0.02439213]
[1617568664188,9.80811323,57878.0,57877.0,0.02337686]
[1617568669582,8.80811323,57878.0,57877.0,0.02337686]
[1617568669782,9.80811323,57878.0,57877.0,0.02337686]
[1617568674892,9.10932769,57878.0,57877.0,0.02337686]
[1617568676295,9.10932769,57878.0,57877.0,0.02236164]
[1617568679097,9.805957,57878.0,57877.0,0.02236164]
[1617568686912,9.805957,57878.0,57877.0,0.02134638]
[1617568687913,6.51427586,57878.0,57877.0,0.02134638]
[1617568688314,8.6721877,57878.0,57877.0,0.02134638]
[1617568688713,9.5509664,57878.0,57877.0,0.02134638]
[1617568689215,10.09625112,57878.0,57877.0,0.02134638]
[1617568689416,10.29625112,57878.0,57877.0,0.02134638]
[1617568692319,10.09625112,57878.0,57877.0,0.02134638]
[1617568697126,10.14755112,57878.0,57877.0,0.02134638]
[1617568697327,10.09625112,57878.0,57877.0,0.02033107]
[1617568698426,10.14765112,57878.0,57877.0,0.02033107]
[1617568698639,10.14765112,57878.0,57856.0,0.4973]
[1617568698640,7.07535112,57878.0,57856.0,0.4973]
[1617568698833,7.07535112,57878.0,57877.0,0.27]
[1617568699230,0.70084769,57862.0,57857.0,0.27]
[1617568699435,1.5,57861.0,57856.0,0.4973]
[1617568699634,2.7045,57857.0,57856.0,0.4973]
[1617568699831,4.2045,57857.0,57856.0,0.4973]
[1617568700029,6.97655782,57857.0,57856.0,0.7673]
[1617568700428,7.52277731,57857.0,57856.0,0.7673]
[1617568701230,7.63003386,57857.0,57856.0,0.7673]
[1617568709242,6.13003386,57857.0,57856.0,0.7673]
[1617568709845,5.58381437,57857.0,57856.0,0.7673]
[1617568711648,2.87931437,57857.0,57856.0,0.7673]
[1617568712071,2.87931437,57857.0,57856.0,3.539]
[1617568712254,2.5137851,57857.0,57856.0,3.539]
[1617568712669,2.5137851,57857.0,57856.0,0.7673]
[1617568713151,5.7701851,57857.0,57856.0,0.7673]
[1617568713553,6.13570983,57857.0,57856.0,0.7673]
[1617568714353,3.97286746,57857.0,57856.0,0.7673]
[1617568714553,6.68279337,57857.0,57856.0,0.7673]
[1617568714956,6.13708359,57857.0,57856.0,0.7673]
[1617568738889,6.24920359,57857.0,57856.0,0.7673]
[1617568748608,6.13708359,57857.0,57856.0,0.7673]
[1617568750610,6.18808359,57857.0,57856.0,0.7673]
[1617568750811,6.13708359,57857.0,57856.0,0.7673]
[1617568751512,6.02982704,57857.0,57856.0,0.7673]
[1617568752013,6.13708359,57857.0,57856.0,0.7673]
[1617568760524,6.28756359,57857.0,57856.0,0.7673]
[1617568760723,6.28756359,57857.0,57856.0,0.9673]
[1617568763329,6.13708359,57857.0,57856.0,0.9673]
[1617568767634,2.88068359,57857.0,57856.0,0.9673]
[1617568767834,2.88068359,57857.0,57856.0,1.11287]
[1617568768036,2.51515886,57857.0,57856.0,3.73557]
[1617568768235,2.40790231,57857.0,57856.0,3.73557]
[1617568768836,1.60315274,57857.0,57856.0,3.73557]
[1617568770738,1.60315274,57857.0,57856.0,4.73557]
[1617568772441,1.84679211,57857.0,57856.0,4.73557]
[1617568773241,1.60315274,57857.0,57856.0,5.10089706]
[1617568773640,1.10219255,57857.0,57856.0,5.10089706]
[1617568774241,1.10219255,57857.0,57856.0,5.5474069]
[1617568774440,1.34582641,57857.0,57856.0,5.5474069]
[1617568774942,1.10219255,57857.0,57856.0,5.5474069]
[1617568775840,1.10219255,57857.0,57856.0,5.10089706]
[1617568778144,1.10219255,57857.0,57856.0,4.73557]
[1617568778643,0.66133556,57857.0,57856.0,5.10000296]
[1617568786356,0.66133556,57857.0,57856.0,2.47730296]
[1617568789362,0.30061618,57857.0,57856.0,2.47730296]
[1617568789560,0.28361618,57857.0,57856.0,2.47730296]
[1617568791663,3.19471618,57857.0,57856.0,2.47730296]
[1617568793464,3.19471618,57857.0,57856.0,2.13173296]
[1617568793663,3.55452641,57857.0,57856.0,1.7673]
[1617568794063,3.55452641,57857.0,57856.0,0.7673]
[1617568796866,3.55452641,57857.0,57856.0,0.9673]
[1617568798483,3.55452641,57857.0,57856.0,1.9673]
[1617568798484,0.64342641,57857.0,57856.0,1.9673]
[1617568799471,0.28361618,57857.0,57856.0,1.9673]
[1617568801573,0.28361618,57857.0,57856.0,2.33112398]
[1617568802273,0.35980873,57860.0,57856.0,2.33112398]
[1617568802674,0.35980873,57860.0,57858.0,1.0]
[1617568802874,0.35980873,57860.0,57859.0,0.2]
[1617568803075,0.35980873,57860.0,57859.0,1.47]
[1617568803276,0.35985018,57861.0,57859.0,1.53090186]
[1617568803576,0.35985018,57861.0,57859.0,1.47]
[1617568803779,0.35985018,57861.0,57859.0,0.47]
[1617568803977,0.35985018,57861.0,57860.0,1.2]
[1617568804177,0.35985018,57861.0,57860.0,1.30725655]
[1617568804379,0.35985018,57861.0,57860.0,1.57725655]
[1617568805080,0.35998986,57862.0,57860.0,1.57725655]
[1617568805581,0.35998986,57862.0,57860.0,0.57725655]
[1617568805779,0.35998986,57862.0,57861.0,1.2]
[1617568806181,0.35998986,57862.0,57861.0,1.47]
[1617568809285,0.24360257,57869.0,57861.0,1.47]
[1617568809286,0.35998792,57863.0,57861.0,1.47]
[1617568809689,0.35998792,57863.0,57861.0,0.47]
[1617568809886,0.35990583,57862.0,57861.0,0.47]
[1617568810287,0.35990583,57862.0,57861.0,1.47]
[1617568810688,0.43980004,57865.0,57861.0,1.47]
[1617568810689,0.3599534,57863.0,57861.0,1.47]
[1617568811086,0.3599534,57863.0,57862.0,0.06090007]
[1617568811493,0.3599534,57863.0,57862.0,1.53090007]
[1617568811693,0.36002047,57864.0,57862.0,1.53090007]
[1617568812095,0.36002047,57864.0,57862.0,0.47]
[1617568812293,0.28242047,57864.0,57862.0,0.47]
[1617568812513,0.28242047,57864.0,57863.0,1.2]
[1617568812891,0.28242047,57864.0,57863.0,1.47]
[1617568813089,0.44007034,57870.0,57863.0,1.47]
[1617568813292,0.44007034,57870.0,57869.0,2.34180527]
[1617568813502,0.44007034,57870.0,57869.0,2.68033527]
[1617568813694,0.44007034,57870.0,57869.0,2.95033527]
[1617568813895,0.44016272,57871.0,57869.0,3.95033527]
[1617568814291,0.44016272,57871.0,57870.0,0.10725655]
[1617568814492,0.44016272,57871.0,57870.0,0.30725655]
[1617568814692,0.44016272,57871.0,57870.0,1.57725655]
[1617568815892,0.44016272,57871.0,57870.0,0.57725655]
[1617568816292,0.44016272,57871.0,57870.0,5.11875655]
[1617568816493,0.44014988,57873.0,57870.0,5.11875655]
[1617568816893,0.44014988,57873.0,57870.0,4.11875655]
[1617568817293,0.44030257,57875.0,57872.0,1.0]
[1617568817694,0.44030257,57875.0,57874.0,3.4906]
[1617568818094,0.44030257,57875.0,57874.0,3.5006]
[1617568818494,0.44030257,57875.0,57874.0,3.7006]
[1617568818696,0.44030257,57875.0,57874.0,4.7006]
[1617568819996,0.74018304,57875.0,57874.0,4.7006]
[1617568824109,0.29988047,57875.0,57874.0,4.7006]
[1617568826521,0.28278047,57875.0,57874.0,4.7006]
[1617568827215,0.18108047,57875.0,57874.0,4.7006]
[1617568827416,0.62097055,57875.0,57874.0,4.7006]
[1617568827814,0.15478047,57875.0,57874.0,4.7006]
[1617568829117,0.11748047,57875.0,57874.0,4.7006]
[1617568829720,0.11748047,57875.0,57874.0,0.01]
[1617568829918,3.31898047,57875.0,57874.0,0.01]
[1617568830118,3.31898047,57875.0,57873.0,1.0]
[1617568830320,3.54751235,57875.0,57872.0,1.0]
[1617568830520,3.54751235,57875.0,57874.0,0.27]
[1617568830720,3.54751235,57875.0,57874.0,1.0]
[1617568830721,3.2015,57875.0,57874.0,1.0]
[1617568831121,3.2015,57875.0,57874.0,1.27]
[1617568831322,0.43868382,57876.0,57875.0,0.77152304]
[1617568831522,0.43870126,57878.0,57874.0,3.5454]
[1617568831723,0.43870126,57878.0,57874.0,3.8154]
[1617568831924,0.4386679,57877.0,57874.0,3.5454]
[1617568832325,0.43862866,57876.0,57875.0,1.27]
[1617568832524,0.43862866,57876.0,57875.0,0.27]
[1617568832725,0.43853258,57877.0,57875.0,1.27]
[1617568833226,0.43850468,57878.0,57875.0,0.27]
[1617568833425,0.43850468,57878.0,57876.0,1.0]
[1617568833825,0.43850468,57878.0,57877.0,1.27]
[1617568834026,0.10725655,57879.0,57877.0,1.27]
[1617568834225,0.49816055,57883.0,57877.0,1.0]
[1617568834426,0.49816055,57883.0,57878.0,1.0]
[1617568834625,0.49816055,57883.0,57882.0,0.10725655]
[1617568834828,2.9651,57884.0,57882.0,0.10725655]
[1617568835025,2.9651,57884.0,57882.0,1.37725655]
[1617568835225,0.43832397,57883.0,57882.0,1.37725655]
[1617568835430,0.43832397,57883.0,57882.0,0.37725655]
[1617568837831,0.79711719,57883.0,57882.0,0.37725655]
[1617568840734,0.90437374,57883.0,57882.0,0.37725655]
[1617568848947,0.964054,57883.0,57882.0,0.37725655]
[1617568849446,1.40238848,57883.0,57882.0,0.37725655]
[1617568849848,1.40236159,57883.0,57882.0,0.37725655]
[1617568853262,0.90435736,57883.0,57882.0,0.37725655]
[1617568857961,1.04239876,57883.0,57882.0,3.51895655]
[1617568858261,0.90435736,57883.0,57882.0,3.51895655]
[1617568858663,1.0424444,57883.0,57882.0,3.51895655]
[1617568859964,1.54197548,57883.0,57882.0,3.51895655]
[1617568867477,0.10725655,57883.0,57882.0,3.51895655]
[1617568867878,1.41298994,57883.0,57882.0,3.51895655]
[1617568868679,1.55142325,57883.0,57882.0,3.51895655]
[1617568870986,1.55142325,57883.0,57882.0,3.71895655]
[1617568871384,1.4441667,57883.0,57882.0,3.71895655]
[1617568871583,1.4441667,57883.0,57882.0,4.71895655]
[1617568871988,0.80354369,57883.0,57882.0,5.0837887]
[1617568872385,0.80354369,57883.0,57882.0,6.5837887]
[1617568872386,0.94210792,57883.0,57882.0,6.5837887]
[1617568872785,0.3616047,57883.0,57882.0,7.02964211]
[1617568872985,0.3197047,57883.0,57882.0,7.02964211]
[1617568873186,0.44307081,57890.0,57882.0,7.53627128]
[1617568873384,0.46154664,57896.0,57882.0,7.53627128]
[1617568873587,1.7115762,57965.0,57882.0,7.53627128]
[1617568873588,0.56409566,57908.0,57885.0,0.2]
[1617568873785,0.56409566,57908.0,57885.0,1.7]
[1617568873986,0.5640938,57907.0,57895.0,1.0]
[1617568874185,0.5640938,57907.0,57886.0,0.27]
[1617568874186,0.5640938,57907.0,57902.0,1.0]
[1617568874386,0.5641938,57908.0,57902.0,1.14574]
[1617568874788,0.5641938,57908.0,57903.0,0.27]
[1617568874987,0.5641938,57908.0,57907.0,0.10725655]
[1617568875186,0.10725655,57909.0,57907.0,0.10725655]
[1617568875387,0.10725655,57909.0,57907.0,0.37725655]
[1617568885700,0.56338071,57920.0,57907.0,0.37725655]
[1617568885900,0.56338071,57920.0,57919.0,3.2228]
[1617568886101,0.56243739,57923.0,57919.0,3.38505]
[1617568886300,0.56243739,57923.0,57919.0,3.65505]
[1617568886503,0.56289372,57927.0,57919.0,3.65505]
[1617568887201,0.56289372,57927.0,57926.0,0.10725655]
[1617568887402,0.56289372,57927.0,57919.0,3.4928]
[1617568887602,0.56289372,57927.0,57926.0,0.27]
[1617568888003,0.56289372,57927.0,57926.0,3.6964]
[1617568888203,0.56289372,57927.0,57926.0,3.96538546]
[1617568888602,1.06532928,57927.0,57926.0,3.69538546]
[1617568888905,1.06532928,57927.0,57926.0,3.96538546]
[1617568889303,1.17258583,57927.0,57926.0,3.96538546]
[1617568889704,1.23345831,57927.0,57926.0,3.96538546]
[1617568892607,0.67056459,57927.0,57926.0,3.96538546]
[1617568893608,1.11269661,57927.0,57926.0,3.96538546]
[1617568895810,1.67517399,57927.0,57926.0,3.96538546]
[1617568896212,1.61430151,57927.0,57926.0,3.96538546]
[1617568896612,1.67517224,57927.0,57926.0,3.96538546]
[1617568898114,2.03648991,57927.0,57926.0,3.96538546]
[1617568898313,2.19879991,57927.0,57926.0,3.96538546]
[1617568898513,2.19879991,57927.0,57926.0,3.96437094]
[1617568899115,2.19879991,57927.0,57926.0,0.27]
[1617568899316,4.77299991,57927.0,57926.0,0.27]
[1617568899516,4.77299991,57927.0,57910.0,0.27]
[1617568900116,0.36130609,57911.0,57910.0,0.27]
[1617568901215,0.46856264,57911.0,57910.0,0.27]
[1617568901818,0.52943426,57911.0,57910.0,0.27]
[1617568902520,0.97144003,57911.0,57910.0,0.27]
[1617568903522,0.52943426,57911.0,57910.0,0.27]
[1617568903923,0.42217771,57911.0,57910.0,0.27]
[1617568904323,0.42217771,57911.0,57907.0,0.27]
[1617568904727,0.36212514,57908.0,57907.0,0.27]
[1617568905326,0.46938169,57908.0,57907.0,0.37725655]
[1617568906126,0.54184132,57908.0,57907.0,0.37725655]
[1617568908831,0.43458477,57908.0,57907.0,0.37725655]
[1617568909633,0.36212514,57908.0,57907.0,0.37725655]
[1617568910134,0.3622582,57909.0,57907.0,0.37725655]
[1617568911636,0.36231919,57908.0,57907.0,0.37725655]
[1617568912134,0.43480745,57908.0,57907.0,0.37725655]
[1617568912636,0.36231919,57908.0,57907.0,0.37725655]
[1617568913537,0.36231919,57908.0,57907.0,3.30515655]
[1617568913736,0.36247767,57910.0,57907.0,3.30515655]
[1617568915340,0.36266221,57912.0,57907.0,3.30515655]
[1617568917542,0.36275955,57914.0,57907.0,3.30515655]
[1617568917742,0.36275955,57914.0,57907.0,4.30515655]
[1617568918142,0.36275955,57914.0,57907.0,0.37725655]
[1617568918343,0.43527626,57915.0,57907.0,0.37725655]
[1617568918542,2.7208,57913.0,57907.0,0.37725655]
[1617568919544,0.10725655,57910.0,57907.0,0.37725655]
[1617568919946,3.08320443,57913.0,57907.0,0.37725655]
[1617568920450,0.36240443,57913.0,57907.0,0.37725655]
[1617568920946,0.36240443,57913.0,57912.0,3.2903]
[1617568921147,0.44337438,57917.0,57912.0,3.2903]
[1617568921345,0.44337438,57917.0,57912.0,3.5603]
[1617568921547,0.36271501,57913.0,57912.0,3.5603]
[1617568923155,0.3623427,57914.0,57912.0,3.5603]
[1617568923452,0.3623427,57914.0,57913.0,0.10725655]
[1617568923852,0.3623427,57914.0,57913.0,0.37725655]
[1617568924653,0.80643737,57914.0,57913.0,0.37725655]
[1617568927456,4.17569392,57914.0,57913.0,0.37725655]
[1617568927657,5.17569392,57914.0,57913.0,0.37725655]
[1617568928260,5.50565587,57914.0,57913.0,0.37725655]
[1617568928658,6.01051882,57914.0,57913.0,0.37725655]
[1617568928856,5.15117882,57914.0,57913.0,0.37725655]
[1617568929058,6.15117882,57914.0,57913.0,0.37725655]
[1617568929257,2.88917882,57914.0,57913.0,0.37725655]
[1617568929459,2.88917882,57914.0,57913.0,3.00855655]
[1617568929859,2.63278002,57914.0,57913.0,3.00855655]
[1617568930561,4.13278002,57914.0,57913.0,0.37725655]
[1617568930960,7.20598002,57914.0,57913.0,0.27]
[1617568931160,7.48040282,57914.0,57913.0,0.27]
[1617568931361,7.48040282,57914.0,57907.0,0.27]
[1617568931563,0.10725655,57908.0,57903.0,0.4543]
[1617568931761,2.60725655,57908.0,57903.0,0.4543]
[1617568931961,1.60725655,57908.0,57907.0,0.27]
[1617568932361,1.60725655,57908.0,57903.0,0.4543]
[1617568932564,2.98254387,57908.0,57907.0,3.01]
[1617568932762,1.87528732,57908.0,57907.0,2.74]
[1617568933163,1.26770528,57908.0,57907.0,3.01]
[1617568933564,0.76360337,57908.0,57907.0,3.11725655]
[1617568933964,0.86020577,57908.0,57907.0,3.11725655]
[1617568934164,0.86020577,57908.0,57907.0,4.11725655]
[1617568934368,0.3199816,57908.0,57907.0,4.31725655]
[1617568934566,0.09657533,57910.0,57907.0,1.57725655]
[1617568934968,0.44509164,57917.0,57910.0,0.2]
[1617568935166,0.44509164,57917.0,57912.0,0.2]
[1617568935369,0.44532042,57918.0,57915.0,0.2]
[1617568935567,0.44532042,57918.0,57914.0,0.44478471]
[1617568935568,0.44532042,57918.0,57917.0,0.30725655]
[1617568936168,0.81566106,57941.0,57917.0,0.82254722]
[1617568936169,0.44527964,57922.0,57917.0,0.82254722]
[1617568936368,0.44527964,57922.0,57917.0,1.82254722]
[1617568936569,0.5059858,57928.0,57919.0,0.44454783]
[1617568936768,0.5059858,57928.0,57927.0,3.659]
[1617568936968,0.50611435,57929.0,57927.0,3.859]
[1617568937169,0.50611435,57929.0,57927.0,5.129]
[1617568937369,0.50609062,57933.0,57928.0,1.06086157]
[1617568937568,0.30609062,57933.0,57932.0,0.10725655]
[1617568937769,0.30609062,57933.0,57932.0,3.13415655]
[1617568937969,2.571,57944.0,57932.0,3.13415655]
[1617568937970,0.56680983,57943.0,57932.0,3.14415655]
[1617568938371,0.56681204,57939.0,57932.0,3.14415655]
[1617568938770,0.16542226,57943.0,57932.0,3.14415655]
[1617568938771,0.56681102,57940.0,57932.0,3.14415655]
[1617568939175,0.16542226,57943.0,57932.0,3.14415655]
[1617568939572,0.16542226,57943.0,57942.0,0.10725655]
[1617568939974,0.16542226,57943.0,57942.0,0.37725655]
[1617568940173,0.56527178,57945.0,57942.0,0.37725655]
[1617568941374,0.10725655,57951.0,57942.0,0.37725655]
[1617568941375,0.5651627,57946.0,57942.0,0.37725655]
[1617568941577,0.5651627,57946.0,57942.0,1.37725655]
[1617568941773,0.56514906,57948.0,57942.0,1.37725655]
[1617568942175,0.67238736,57951.0,57942.0,1.37725655]
[1617568942573,0.10725655,57951.0,57942.0,1.37725655]
[1617568943574,0.70638829,57959.0,57958.0,3.2592]
[1617568943777,0.70638829,57959.0,57958.0,3.39864]
[1617568943975,0.70638829,57959.0,57958.0,3.66864]
[1617568945579,0.10725655,57959.0,57958.0,3.77589655]
[1617568949583,0.10425655,57959.0,57958.0,3.77589655]
[1617568951389,5.655e-05,57959.0,57958.0,3.77589655]
[1617568952588,2.8045,57960.0,57958.0,3.77589655]
[1617568953190,2.8045,57960.0,57958.0,3.66864]
[1617568953592,2.8045,57960.0,57958.0,3.5292]